fUSD/lending_fUSD_20250814
["ID","MTS","AMOUNT","RATE_DAILY","PERIOD"]
[379211862,1755189048937,-2700.59,0.00027397,2]
[379211863,1755189048947,-460.85,0.00027397,2]
[379211864,1755189048957,-815.43,0.00027397,2]
[379211865,1755189048967,-1729.46,0.00027397,2]
[379211866,1755189048976,-1040.69,0.00027397,2]
[379211867,1755189048988,-2457.24,0.00027397,2]
[379211868,1755189048999,-400.0,0.00027397,2]
[379211869,1755189049009,-400.0,0.00027397,2]
[379211870,1755189049019,-396.1103147,0.00027397,2]
[379211871,1755189049029,-5378.11,0.00027397,2]
[379211872,1755189049039,-1324.73,0.00027397,2]
[379211873,1755189049049,-921.0,0.00027397,2]
[379211874,1755189049059,-400.0,0.00027397,2]
[379211875,1755189049069,-400.0,0.00027397,2]
[379211876,1755189049079,-3380.84,0.00027397,2]
[379211877,1755189049089,-1152.16,0.00027397,2]
[379211878,1755189049100,-400.0,0.00027397,2]
[379211879,1755189049110,-1461.65,0.00027397,2]
[379211880,1755189049119,-400.0,0.00027397,2]
[379211881,1755189049129,-400.0,0.00027397,2]
[379211882,1755189049139,-890.45,0.00027397,2]
[379211883,1755189049149,-1470.32,0.00027397,2]
[379211884,1755189049166,-400.0,0.00027397,2]
[379211885,1755189049176,-400.0,0.00027397,2]
[379211886,1755189049186,-2777.76,0.00027397,2]
[379211887,1755189049198,-939.67,0.00027397,2]
[379211888,1755189049208,-614.57,0.00027397,2]
[379211889,1755189049218,-400.0,0.00027397,2]
[379211890,1755189049228,-400.0,0.00027397,2]
[379211891,1755189049238,-400.0,0.00027397,2]
[379211892,1755189049249,-559.81,0.00027397,2]
[379211893,1755189049260,-1171.16,0.00027397,2]
[379211894,1755189049270,-400.0,0.00027397,2]
[379211895,1755189049280,-400.0,0.00027397,2]
[379211896,1755189049290,-1536.23,0.00027397,2]
[379211897,1755189049300,-1544.64,0.00027397,2]
[379211898,1755189049310,-1668.8,0.00027397,2]
[379211899,1755189049320,-1784.2,0.00027397,2]
[379211900,1755189049330,-400.0,0.00027397,2]
[379211901,1755189049339,-400.0,0.00027397,2]
[379211902,1755189049349,-400.0,0.00027397,2]
[379211903,1755189049359,-488.58,0.00027397,2]
[379211904,1755189049369,-4875.76,0.00027397,2]
[379211905,1755189049379,-400.0,0.00027397,2]
[379211906,1755189049389,-1749.6,0.00027397,2]
[379211907,1755189049399,-229.72419692,0.00027397,2]
[379211908,1755189049409,-3890.08,0.00027397,2]
[379211909,1755189049419,-5772.61,0.00027397,2]
[379211910,1755189049429,-400.0,0.00027397,2]
[379211911,1755189049440,-601.29,0.00027397,2]
[379211912,1755189049450,-400.0,0.00027397,2]
[379211913,1755189049460,-400.0,0.00027397,2]
[379211914,1755189049470,-400.0,0.00027397,2]
[379211915,1755189049479,-400.0,0.00027397,2]
[379211916,1755189049490,-5133.09,0.00027397,2]
[379211917,1755189049502,-3241.92,0.00027397,2]
[379211918,1755189049512,-2617.57,0.00027397,2]
[379211919,1755189049522,-2343.02,0.00027397,2]
[379211920,1755189049532,-400.0,0.00027397,2]
[379211921,1755189049542,-4649.11,0.00027397,2]
[379211922,1755189049552,-3085.52,0.00027397,2]
[379211923,1755189049562,-400.0,0.00027397,2]
[379211924,1755189049572,-400.0,0.00027397,2]
[379211925,1755189049582,-400.0,0.00027397,2]
[379211926,1755189049591,-400.0,0.00027397,2]
[379211927,1755189049601,-3619.39,0.00027397,2]
[379211928,1755189049611,-2892.87,0.00027397,2]
[379211929,1755189049621,-400.0,0.00027397,2]
[379211930,1755189049631,-4768.74,0.00027397,2]
[379211931,1755189049640,-400.0,0.00027397,2]
[379211932,1755189049651,-790.61,0.00027397,2]
[379211933,1755189049660,-400.0,0.00027397,2]
[379211934,1755189049670,-559.06,0.00027397,2]
[379211935,1755189049680,-838.12,0.00027397,2]
[379211936,1755189049690,-400.0,0.00027397,2]
[379211937,1755189049700,-648.47,0.00027397,2]
[379211938,1755189049710,-1105.43,0.00027397,2]
[379211939,1755189049720,-812.95,0.00027397,2]
[379211940,1755189049730,-400.0,0.00027397,2]
[379211941,1755189049740,-500.0,0.00027397,2]
[379211942,1755189049754,-219.6,0.00027397,2]
[379211943,1755189049764,-1708.45,0.00027397,2]
[379211944,1755189049774,-400.0,0.00027397,2]
[379211945,1755189049784,-400.0,0.00027397,2]
[379211946,1755189049793,-400.0,0.00027397,2]
[379211947,1755189049803,-6286.95,0.00027397,2]
[379211948,1755189049814,-400.0,0.00027397,2]
[379211949,1755189049823,-400.0,0.00027397,2]
[379211950,1755189049833,-400.0,0.00027397,2]
[379211951,1755189049842,-400.0,0.00027397,2]
[379211952,1755189049852,-400.0,0.00027397,2]
[379211953,1755189049862,-400.0,0.00027397,2]
[379211954,1755189049872,-3522.34,0.00027397,2]
[379211955,1755189049882,-921.37,0.00027397,2]
[379211956,1755189049891,-400.0,0.00027397,2]
[379211957,1755189049902,-2675.75,0.00027397,2]
[379211958,1755189049912,-1112.91,0.00027397,2]
[379211959,1755189049922,-400.0,0.00027397,2]
[379211960,1755189049932,-1071.61,0.00027397,2]
[379211961,1755189049943,-832.29,0.00027397,2]
[379211962,1755189049953,-400.0,0.00027397,2]
[379211963,1755189049963,-400.0,0.00027397,2]
[379211964,1755189049972,-400.0,0.00027397,2]
[379211965,1755189049982,-3913.94,0.00027397,2]
[379211966,1755189049994,-400.0,0.00027397,2]
[379211967,1755189050006,-6204.12,0.00027397,2]
[379211968,1755189050017,-673.64,0.00027397,2]
[379211969,1755189050027,-400.0,0.00027397,2]
[379211970,1755189050037,-243.197023,0.00027397,7]
[379211971,1755189050049,-400.0,0.00027397,2]
[379211972,1755189050060,-400.0,0.00027397,2]
[379211973,1755189050070,-400.0,0.00027397,2]
[379211974,1755189050081,-400.0,0.00027397,2]
[379211975,1755189050092,-400.0,0.00027397,2]
[379211976,1755189050102,-400.0,0.00027397,2]
[379211977,1755189050114,-400.0,0.00027397,2]
[379211978,1755189050125,-1190.54,0.00027397,2]
[379211979,1755189050135,-911.9,0.00027397,2]
[379211980,1755189050146,-709.07,0.00027397,2]
[379211981,1755189050159,-400.0,0.00027397,2]
[379211982,1755189050171,-1731.1,0.00027397,2]
[379211983,1755189050182,-438.44,0.00027397,2]
[379211984,1755189050193,-400.0,0.00027397,2]
[379211985,1755189050204,-1489.29,0.00027397,2]
[379211986,1755189050216,-1194.73,0.00027397,2]
[379211987,1755189050229,-528.45,0.00027397,2]
[379211988,1755189050239,-190.92728133,0.00027397,2]
[379211989,1755189050257,-4467.92,0.00027397,2]
[379211990,1755189050267,-3819.42,0.00027397,2]
[379211991,1755189050279,-497.99,0.00027397,2]
[379211992,1755189050290,-243.197023,0.00027397,7]
[379211993,1755189050300,-400.0,0.00027397,2]
[379211994,1755189050311,-400.0,0.00027397,2]
[379211995,1755189050322,-2446.233585,0.00027397,7]
[379211996,1755189050332,-400.0,0.00027397,2]
[379211997,1755189050342,-2000.0,0.00027397,30]
[379211998,1755189050352,-400.0,0.00027397,2]
[379211999,1755189050362,-400.0,0.00027397,2]
[379212000,1755189050372,-1432.5,0.00027397,2]
[379212001,1755189050383,-514.5,0.00027397,2]
[379212002,1755189050393,-400.0,0.00027397,2]
[379212003,1755189050403,-400.0,0.00027397,2]
[379212004,1755189050414,-400.0,0.00027397,2]
[379212005,1755189050424,-2384.5,0.00027397,2]
[379212006,1755189050435,-418.15,0.00027397,2]
[379212007,1755189050445,-2446.233585,0.00027397,7]
[379212008,1755189050456,-599.42,0.00027397,2]
[379212009,1755189050467,-1080.89,0.00027397,2]
[379212010,1755189050478,-1465.05,0.00027397,2]
[379212011,1755189050488,-400.0,0.00027397,2]
[379212012,1755189050502,-400.0,0.00027397,2]
[379212013,1755189050513,-1846.85,0.00027397,2]
[379212014,1755189050523,-400.0,0.00027397,2]
[379212015,1755189050533,-400.0,0.00027397,2]
[379212016,1755189050543,-815.64,0.00027397,2]
[379212017,1755189050554,-1442.43,0.00027397,2]
[379212018,1755189050564,-3205.13,0.00027397,2]
[379212019,1755189050575,-400.0,0.00027397,2]
[379212020,1755189050586,-605.54,0.00027397,2]
[379212021,1755189050596,-1194.6,0.00027397,2]
[379212022,1755189050607,-2610.83,0.00027397,2]
[379212023,1755189050618,-400.0,0.00027397,2]
[379212024,1755189050628,-400.0,0.00027397,2]
[379212025,1755189050639,-400.0,0.00027397,2]
[379212026,1755189050649,-400.0,0.00027397,2]
[379212027,1755189050659,-939.19,0.00027397,2]
[379212028,1755189050669,-794.95,0.00027397,2]
[379212029,1755189050679,-5315.61,0.00027397,2]
[379212030,1755189050688,-400.0,0.00027397,2]
[379212031,1755189050699,-403.88,0.00027397,2]
[379212032,1755189050709,-400.0,0.00027397,2]
[379212033,1755189050719,-2569.97,0.00027397,2]
[379212034,1755189050729,-400.0,0.00027397,2]
[379212035,1755189050739,-600.66,0.00027397,2]
[379212036,1755189050751,-400.0,0.00027397,2]
[379212037,1755189050761,-4058.22,0.00027397,2]
[379212038,1755189050771,-1924.59,0.00027397,2]
[379212039,1755189050781,-909.31,0.00027397,2]
[379212040,1755189050791,-400.0,0.00027397,2]
[379212041,1755189050800,-400.0,0.00027397,2]
[379212042,1755189050810,-3178.38,0.00027397,2]
[379212043,1755189050820,-400.0,0.00027397,2]
[379212044,1755189050830,-1382.33,0.00027397,2]
[379212045,1755189050841,-5465.26,0.00027397,2]
[379212046,1755189050850,-400.0,0.00027397,2]
[379212047,1755189050860,-690.66,0.00027397,2]
[379212048,1755189050870,-336.66725019,0.00027397,2]
[379212049,1755189050880,-486.81,0.00027397,2]
[379212050,1755189050890,-817.92,0.00027397,2]
[379212051,1755189050900,-400.0,0.00027397,2]
[379212052,1755189050910,-839.52,0.00027397,2]
[379212053,1755189050920,-938.92,0.00027397,2]
[379212054,1755189050929,-2591.82,0.00027397,2]
[379212055,1755189050939,-999.61,0.00027397,2]
[379212056,1755189050949,-400.0,0.00027397,2]
[379212057,1755189050959,-400.0,0.00027397,2]
[379212058,1755189050969,-5215.13,0.00027397,2]
[379212059,1755189050979,-1338.78,0.00027397,2]
[379212060,1755189050990,-320.81,0.00027397,2]
[379212061,1755189051003,-4632.86,0.00027397,2]
[379212062,1755189051013,-400.0,0.00027397,2]
[379212063,1755189051024,-1092.27,0.00027397,2]
[379212064,1755189051036,-400.0,0.00027397,2]
[379212065,1755189051047,-400.0,0.00027397,2]
[379212066,1755189051057,-3153.84,0.00027397,2]
[379212067,1755189051069,-1663.58,0.00027397,2]
[379212068,1755189051081,-400.0,0.00027397,2]
[379212069,1755189051092,-400.0,0.00027397,2]
[379212070,1755189051103,-400.0,0.00027397,2]
[379212071,1755189051113,-604.41,0.00027397,2]
[379212072,1755189051124,-1358.66,0.00027397,2]
[379212073,1755189051134,-4124.99,0.00027397,2]
[379212074,1755189051144,-400.0,0.00027397,2]
[379212075,1755189051159,-400.0,0.00027397,2]
[379212076,1755189051169,-780.81,0.00027397,2]
[379212077,1755189051179,-443.72,0.00027397,2]
[379212078,1755189051188,-1101.53,0.00027397,2]
[379212079,1755189051199,-271.32069341,0.00027397,2]
[379212080,1755189051209,-400.0,0.00027397,2]
[379212082,1755189051220,-400.0,0.00027397,2]
[379212083,1755189051654,-1671.21,0.00027397,2]
[379212084,1755189051664,-3517.13,0.00027397,2]
[379212085,1755189051675,-400.0,0.00027397,2]
[379212086,1755189051685,-657.59,0.00027397,2]
[379212087,1755189051695,-400.0,0.00027397,2]
[379212088,1755189051704,-400.0,0.00027397,2]
[379212089,1755189051714,-1075.828974,0.00027397,7]
[379212090,1755189051725,-1074.5,0.00027397,2]
[379212091,1755189051745,-400.0,0.00027397,2]
[379212092,1755189051767,-2704.21,0.00027397,2]
[379212093,1755189051779,-1513.36,0.00027397,2]
[379212094,1755189051788,-2252.53,0.00027397,2]
[379212095,1755189051799,-678.26,0.00027397,2]
[379212096,1755189051808,-1976.26,0.00027397,2]
[379212097,1755189051818,-1318.21,0.00027397,2]
[379212098,1755189051828,-2426.76,0.00027397,2]
[379212099,1755189051837,-400.0,0.00027397,2]
[379212100,1755189051848,-400.0,0.00027397,2]
[379212101,1755189051858,-400.0,0.00027397,2]
[379212102,1755189051867,-4470.56,0.00027397,2]
[379212103,1755189051877,-2465.15,0.00027397,2]
[379212104,1755189051886,-400.0,0.00027397,2]
[379212105,1755189051896,-1395.52,0.00027397,2]
[379212106,1755189051905,-1075.828974,0.00027397,7]
[379212107,1755189051914,-717.76,0.00027397,2]
[379212108,1755189051924,-400.0,0.00027397,2]
[379212109,1755189051934,-1800.49,0.00027397,2]
[379212110,1755189051943,-400.0,0.00027397,2]
[379212111,1755189051953,-2522.11,0.00027397,2]
[379212112,1755189051962,-326.05624125,0.00027397,2]
[379212113,1755189051972,-400.0,0.00027397,2]
[379212114,1755189051982,-1282.93,0.00027397,2]
[379212115,1755189051991,-2727.67,0.00027397,2]
[379212116,1755189052006,-400.0,0.00027397,2]
[379212117,1755189052015,-559.64,0.00027397,2]
[379212118,1755189052024,-273.11907844,0.00027397,2]
[379212119,1755189052035,-151.0,0.00027397,7]
[379212120,1755189052045,-400.0,0.00027397,2]
[379212121,1755189052055,-400.0,0.00027397,2]
[379212122,1755189052066,-400.0,0.00027397,2]
[379212123,1755189052075,-2763.09,0.00027397,2]
[379212124,1755189052085,-400.0,0.00027397,2]
[379212125,1755189052094,-400.0,0.00027397,2]
[379212126,1755189052104,-503.56,0.00027397,2]
[379212127,1755189052114,-1192.36,0.00027397,2]
[379212128,1755189052124,-291.14393168,0.00027397,2]
[379212129,1755189052134,-922.87,0.00027397,2]
[379212130,1755189052144,-3179.52,0.00027397,2]
[379212131,1755189052157,-400.0,0.00027397,2]
[379212132,1755189052168,-889.8,0.00027397,2]
[379212133,1755189052181,-827.45,0.00027397,2]
[379212134,1755189052192,-2668.65,0.00027397,2]
[379212135,1755189052204,-400.0,0.00027397,2]
[379212136,1755189052214,-507.56,0.00027397,2]
[379212137,1755189052224,-500.29,0.00027397,2]
[379212138,1755189052235,-400.0,0.00027397,2]
[379212139,1755189052248,-2006.03,0.00027397,2]
[379212140,1755189052257,-400.0,0.00027397,2]
[379212141,1755189052267,-1703.73,0.00027397,2]
[379212142,1755189052277,-402.56876129,0.00027397,2]
[379212143,1755189052287,-5196.73,0.00027397,2]
[379212144,1755189052296,-1117.46,0.00027397,2]
[379212145,1755189052306,-400.0,0.00027397,2]
[379212146,1755189052316,-400.0,0.00027397,2]
[379212147,1755189052326,-3024.11,0.00027397,2]
[379212148,1755189052336,-1008.82,0.00027397,2]
[379212149,1755189052345,-400.0,0.00027397,2]
[379212150,1755189052355,-400.0,0.00027397,2]
[379212151,1755189052364,-3647.85,0.00027397,2]
[379212152,1755189052374,-400.0,0.00027397,2]
[379212153,1755189052385,-2540.24214388,0.00027397,2]
[379212156,1755189053523,-954.66785612,0.00027397,2]
[379212157,1755189053533,-620.71,0.00027397,2]
[379212158,1755189053542,-778.62214388,0.00027397,2]
[379212159,1755189053569,-384.12785612,0.00027397,2]
[379212160,1755189053578,-400.0,0.00027397,2]
[379212161,1755189053587,-635.63,0.00027397,2]
[379212162,1755189053596,-400.0,0.00027397,2]
[379212163,1755189053606,-171.82509763,0.00027397,2]
[379212164,1755189053618,-228.17490237,0.00027397,2]
[379212165,1755189053628,-979.92509778,0.00027397,2]
[379212166,1755189053659,-402.12490222,0.00027397,2]
[379212167,1755189053668,-81.95703259,0.00027397,2]
[379212168,1755189053694,-353.83626,0.00027397,2]
[379212169,1755189053716,-912.06681187,0.00027397,2]
[379212170,1755189053728,-1428.53199603,0.00027397,2]
[379212173,1755189055351,-778.40738836,0.00021377,2]
[379212174,1755189055363,-500.0,0.00026789,2]
[379212175,1755189055373,-215.72843507,0.00026789,2]
[379212176,1755189055384,-255.40551688,0.00026789,2]
[379212177,1755189055395,-521.0,0.00027137,2]
[379212178,1755189055407,-2837.72789951,0.00027397,2]
[379212179,1755189055416,-400.0,0.00027397,2]
[379212180,1755189055428,-400.0,0.00027397,2]
[379212181,1755189055440,-735.11,0.00027397,2]
[379212182,1755189055450,-1085.78,0.00027397,2]
[379212183,1755189055460,-400.0,0.00027397,2]
[379212184,1755189055472,-1885.38,0.00027397,2]
[379212185,1755189055483,-407.7,0.00027397,2]
[379212186,1755189055493,-400.0,0.00027397,2]
[379212187,1755189055505,-2653.1,0.00027397,2]
[379212188,1755189055515,-1240.9,0.00027397,2]
[379212189,1755189055525,-442.72,0.00027397,2]
[379212190,1755189055535,-631.8,0.00027397,2]
[379212191,1755189055545,-897.95,0.00027397,2]
[379212192,1755189055555,-403.54614457,0.00027397,2]
[379212193,1755189055566,-400.0,0.00027397,2]
[379212194,1755189055576,-400.0,0.00027397,2]
[379212195,1755189055586,-842.98,0.00027397,2]
[379212196,1755189055596,-400.0,0.00027397,2]
[379212197,1755189055607,-2220.27,0.00027397,2]
[379212198,1755189055617,-2201.48,0.00027397,2]
[379212199,1755189055628,-1524.89,0.00027397,2]
[379212200,1755189055640,-1003.15,0.00027397,2]
[379212201,1755189055655,-400.0,0.00027397,2]
[379212202,1755189055665,-400.0,0.00027397,2]
[379212203,1755189055675,-400.0,0.00027397,2]
[379212204,1755189055685,-478.84,0.00027397,2]
[379212205,1755189055696,-1353.75,0.00027397,2]
[379212206,1755189055706,-1126.81,0.00027397,2]
[379212207,1755189055717,-400.0,0.00027397,2]
[379212208,1755189055727,-642.32,0.00027397,2]
[379212209,1755189055737,-516.39,0.00027397,2]
[379212210,1755189055747,-400.0,0.00027397,2]
[379212211,1755189055757,-1395.15,0.00027397,2]
[379212212,1755189055767,-479.17,0.00027397,2]
[379212213,1755189055778,-400.0,0.00027397,2]
[379212214,1755189055788,-400.0,0.00027397,2]
[379212215,1755189055803,-1214.3,0.00027397,2]
[379212216,1755189055813,-400.0,0.00027397,2]
[379212217,1755189055823,-400.0,0.00027397,2]
[379212218,1755189055838,-4224.67,0.00027397,2]
[379212219,1755189055849,-2356.96,0.00027397,2]
[379212220,1755189055860,-488.01,0.00027397,2]
[379212221,1755189055871,-404.87,0.00027397,2]
[379212222,1755189055881,-400.0,0.00027397,2]
[379212223,1755189055891,-4876.85,0.00027397,2]
[379212224,1755189055902,-500.0,0.00027397,2]
[379212225,1755189055911,-500.0,0.00027397,2]
[379212226,1755189055923,-500.0,0.00027397,2]
[379212227,1755189055933,-500.0,0.00027397,2]
[379212228,1755189055944,-485.87,0.00027397,2]
[379212229,1755189055955,-400.0,0.00027397,2]
[379212230,1755189055966,-400.0,0.00027397,2]
[379212231,1755189055976,-400.0,0.00027397,2]
[379212232,1755189055987,-500.0,0.00027397,2]
[379212233,1755189056000,-2780.01,0.00027397,2]
[379212234,1755189056011,-571.16,0.00027397,2]
[379212235,1755189056022,-400.0,0.00027397,2]
[379212236,1755189056033,-571.16,0.00027397,2]
[379212237,1755189056044,-1381.75,0.00027397,2]
[379212238,1755189056055,-475.72,0.00027397,2]
[379212239,1755189056067,-571.16,0.00027397,2]
[379212240,1755189056078,-1624.46,0.00027397,2]
[379212241,1755189056089,-571.16,0.00027397,2]
[379212242,1755189056100,-1000.0,0.00027397,2]
[379212243,1755189056111,-400.0,0.00027397,2]
[379212244,1755189056122,-571.16,0.00027397,2]
[379212245,1755189056133,-448.34,0.00027397,2]
[379212246,1755189056144,-571.16,0.00027397,2]
[379212247,1755189056157,-571.16,0.00027397,2]
[379212248,1755189056171,-571.16,0.00027397,2]
[379212249,1755189056184,-400.0,0.00027397,2]
[379212250,1755189056195,-1894.26,0.00027397,2]
[379212251,1755189056207,-476.68,0.00027397,2]
[379212252,1755189056219,-571.16,0.00027397,2]
[379212253,1755189056231,-571.16,0.00027397,2]
[379212254,1755189056243,-571.16,0.00027397,2]
[379212255,1755189056258,-778.34,0.00027397,2]
[379212256,1755189056270,-400.0,0.00027397,2]
[379212257,1755189056282,-571.16,0.00027397,2]
[379212258,1755189056293,-400.0,0.00027397,2]
[379212259,1755189056305,-571.16,0.00027397,2]
[379212260,1755189056316,-571.16,0.00027397,2]
[379212261,1755189056328,-4028.27,0.00027397,2]
[379212262,1755189056340,-571.16,0.00027397,2]
[379212263,1755189056351,-400.0,0.00027397,2]
[379212264,1755189056363,-400.0,0.00027397,2]
[379212265,1755189056374,-400.0,0.00027397,2]
[379212266,1755189056385,-955.53,0.00027397,2]
[379212267,1755189056396,-400.0,0.00027397,2]
[379212268,1755189056407,-400.0,0.00027397,2]
[379212269,1755189056418,-1032.37,0.00027397,2]
[379212270,1755189056430,-960.81,0.00027397,2]
[379212271,1755189056443,-839.66,0.00027397,2]
[379212272,1755189056454,-3618.22,0.00027397,2]
[379212273,1755189056465,-400.0,0.00027397,2]
[379212274,1755189056476,-400.0,0.00027397,2]
[379212275,1755189056487,-577.94,0.00027397,2]
[379212276,1755189056499,-403.92007972,0.00027397,2]
[379212277,1755189056510,-3927.15,0.00027397,2]
[379212278,1755189056521,-761.26,0.00027397,2]
[379212279,1755189056531,-761.26,0.00027397,2]
[379212280,1755189056542,-761.26,0.00027397,2]
[379212281,1755189056553,-761.26,0.00027397,2]
[379212282,1755189056564,-761.26,0.00027397,2]
[379212283,1755189056575,-1843.05,0.00027397,2]
[379212284,1755189056585,-761.26,0.00027397,2]
[379212285,1755189056596,-761.26,0.00027397,2]
[379212286,1755189056606,-4214.26,0.00027397,2]
[379212287,1755189056617,-761.26,0.00027397,2]
[379212288,1755189056628,-761.26,0.00027397,2]
[379212289,1755189056638,-761.26,0.00027397,2]
[379212290,1755189056648,-761.26,0.00027397,2]
[379212291,1755189056658,-400.0,0.00027397,2]
[379212292,1755189056669,-761.26,0.00027397,2]
[379212293,1755189056680,-761.26,0.00027397,2]
[379212294,1755189056691,-761.26,0.00027397,2]
[379212295,1755189056701,-400.0,0.00027397,2]
[379212296,1755189056712,-761.26,0.00027397,2]
[379212297,1755189056722,-761.26,0.00027397,2]
[379212298,1755189056733,-761.26,0.00027397,2]
[379212299,1755189056743,-761.26,0.00027397,2]
[379212300,1755189056755,-1091.03,0.00027397,2]
[379212301,1755189056766,-1727.38,0.00027397,2]
[379212302,1755189056776,-880.89,0.00027397,2]
[379212303,1755189056787,-460.86,0.00027397,2]
[379212304,1755189056809,-828.57,0.00027397,2]
[379212305,1755189056824,-4221.59,0.00027397,2]
[379212306,1755189056840,-400.0,0.00027397,2]
[379212307,1755189056856,-812.53,0.00027397,2]
[379212308,1755189056872,-566.66,0.00027397,2]
[379212309,1755189056885,-389.2517168,0.00027397,2]
[379212310,1755189056901,-3357.14,0.00027397,2]
[379212311,1755189056917,-445.17,0.00027397,2]
[379212312,1755189056934,-5864.74,0.00027397,2]
[379212313,1755189056951,-1850.08,0.00027397,2]
[379212314,1755189056968,-1038.76,0.00027397,2]
[379212315,1755189056983,-1499.27,0.00027397,2]
[379212316,1755189057001,-2232.1,0.00027397,2]
[379212317,1755189057018,-400.0,0.00027397,2]
[379212318,1755189057033,-400.0,0.00027397,2]
[379212319,1755189057045,-400.0,0.00027397,2]
[379212320,1755189057064,-723.01,0.00027397,2]
[379212321,1755189057076,-500.0,0.00027397,2]
[379212322,1755189057090,-400.0,0.00027397,2]
[379212323,1755189057108,-500.0,0.00027397,2]
[379212324,1755189057121,-500.0,0.00027397,2]
[379212325,1755189057135,-400.0,0.00027397,2]
[379212326,1755189057151,-500.0,0.00027397,2]
[379212327,1755189057184,-500.0,0.00027397,2]
[379212328,1755189057199,-1480.24,0.00027397,2]
[379212329,1755189057214,-500.0,0.00027397,2]
[379212331,1755189057230,-400.0,0.00027397,2]
[379212332,1755189057244,-562.13391508,0.00027397,2]
[379212333,1755189057263,-730.33,0.00027397,2]
[379212334,1755189057279,-400.0,0.00027397,2]
[379212335,1755189057293,-400.0,0.00027397,2]
[379212336,1755189057308,-1122.96,0.00027397,2]
[379212337,1755189057324,-2274.7,0.00027397,2]
[379212338,1755189057339,-400.0,0.00027397,2]
[379212339,1755189057353,-410.127337,0.00027397,7]
[379212340,1755189057368,-400.0,0.00027397,2]
[379212341,1755189057382,-400.0,0.00027397,2]
[379212342,1755189057396,-400.0,0.00027397,2]
[379212343,1755189057411,-1333.49,0.00027397,2]
[379212344,1755189057425,-400.0,0.00027397,2]
[379212345,1755189057439,-400.0,0.00027397,2]
[379212346,1755189057454,-990.59,0.00027397,2]
[379212347,1755189057468,-410.127337,0.00027397,7]
[379212348,1755189057482,-164.8,0.00027397,7]
[379212349,1755189057495,-411.57,0.00027397,2]
[379212350,1755189057512,-400.0,0.00027397,2]
[379212351,1755189057526,-400.0,0.00027397,2]
[379212352,1755189057540,-2828.59,0.00027397,2]
[379212353,1755189057554,-2110.71,0.00027397,2]
[379212354,1755189057569,-1149.58,0.00027397,2]
[379212355,1755189057584,-423.95,0.00027397,2]
[379212356,1755189057597,-164.8,0.00027397,7]
[379212357,1755189057612,-1823.12,0.00027397,2]
[379212358,1755189057625,-1593.9,0.00027397,2]
[379212359,1755189057640,-1089.71,0.00027397,2]
[379212360,1755189057654,-400.0,0.00027397,2]
[379212361,1755189057669,-3154.46,0.00027397,2]
[379212362,1755189057684,-2089.53,0.00027397,2]
[379212363,1755189057698,-400.0,0.00027397,2]
[379212364,1755189057711,-6233.66,0.00027397,2]
[379212365,1755189057725,-2675.67,0.00027397,2]
[379212366,1755189057740,-400.0,0.00027397,2]
[379212367,1755189057754,-400.0,0.00027397,2]